[Event "Early-Titled-Tuesday-Blitz-September-05-2023"]
[Site "Chess.com"]
[Date "2023.09.05"]
[Round "8"]
[White "I_am_Javi"]
[Black "ChainedDowntohell"]
[Result "1-0"]
[WhiteElo "2749"]
[BlackElo "2582"]
[TimeControl "180+1"]
[EndTime "9:27:00 PDT"]
[Termination "I_am_Javi won on time"]

1. e4 {[%clk 0:02:57]} 1... c6 {[%clk 0:02:56.1]} 2. d4 {[%clk 0:02:54.9]} 2...
g6 {[%clk 0:02:56.2]} 3. c3 {[%clk 0:02:53.2]} 3... d5 {[%clk 0:02:55]} 4. e5
{[%clk 0:02:50]} 4... h5 {[%clk 0:02:52.7]} 5. Bd3 {[%clk 0:02:49.3]} 5... Nh6
{[%clk 0:02:49.4]} 6. Ne2 {[%clk 0:02:46.4]} 6... b6 {[%clk 0:02:40.6]} 7. O-O
{[%clk 0:02:46.1]} 7... Ba6 {[%clk 0:02:38.3]} 8. Bxa6 {[%clk 0:02:45.6]} 8...
Nxa6 {[%clk 0:02:39.2]} 9. e6 {[%clk 0:02:46]} 9... Qd6 {[%clk 0:02:12.3]} 10.
exf7+ {[%clk 0:02:43.7]} 10... Nxf7 {[%clk 0:02:11.1]} 11. Re1 {[%clk
0:02:40.4]} 11... Bg7 {[%clk 0:02:03.5]} 12. Nf4 {[%clk 0:02:37]} 12... Nc7
{[%clk 0:01:55.1]} 13. Qd3 {[%clk 0:02:27.5]} 13... Rh6 {[%clk 0:01:41.5]} 14.
b3 {[%clk 0:02:18.6]} 14... e5 {[%clk 0:01:27.7]} 15. dxe5 {[%clk 0:01:56.4]}
15... Nxe5 {[%clk 0:01:28.6]} 16. Qh3 {[%clk 0:01:50.1]} 16... Kf7 {[%clk
0:01:02.8]} 17. Nd2 {[%clk 0:01:28.9]} 17... Re8 {[%clk 0:01:01.4]} 18. Nf1
{[%clk 0:01:15.5]} 18... g5 {[%clk 0:00:30.8]} 19. Nxh5 {[%clk 0:00:24.1]} 19...
g4 {[%clk 0:00:31]} 20. Qh4 {[%clk 0:00:23.8]} 20... Bf6 {[%clk 0:00:26.3]} 21.
Bg5 {[%clk 0:00:23.1]} 21... Reh8 {[%clk 0:00:20.1]} 22. Bxf6 {[%clk 0:00:21.5]}
22... Rxh5 {[%clk 0:00:15.9]} 23. Bxe5 {[%clk 0:00:20.8]} 23... Qxe5 {[%clk
0:00:12.8]} 24. Rxe5 {[%clk 0:00:18.5]} 24... Rxh4 {[%clk 0:00:13]} 25. Rae1
{[%clk 0:00:19.2]} 25... Re8 {[%clk 0:00:10]} 26. Rxe8 {[%clk 0:00:18.6]} 26...
Nxe8 {[%clk 0:00:10.9]} 27. Ng3 {[%clk 0:00:17.9]} 27... Nd6 {[%clk 0:00:10.1]}
28. Re3 {[%clk 0:00:17.7]} 28... Rh6 {[%clk 0:00:08.8]} 29. f3 {[%clk
0:00:18.1]} 29... Rg6 {[%clk 0:00:07.7]} 30. fxg4 {[%clk 0:00:18]} 30... Rxg4
{[%clk 0:00:08.6]} 31. h3 {[%clk 0:00:18.5]} 31... Rg8 {[%clk 0:00:07.2]} 32. h4
{[%clk 0:00:17.9]} 32... Rg4 {[%clk 0:00:04.6]} 33. h5 {[%clk 0:00:18.1]} 33...
a5 {[%clk 0:00:03.3]} 34. Rf3+ {[%clk 0:00:18.2]} 34... Kg7 {[%clk 0:00:03.4]}
35. Re3 {[%clk 0:00:17.8]} 35... Kf6 {[%clk 0:00:03.1]} 36. Rf3+ {[%clk
0:00:13.7]} 36... Kg7 {[%clk 0:00:02.6]} 37. Kf2 {[%clk 0:00:12.7]} 37... Ne4+
{[%clk 0:00:01.9]} 38. Nxe4 {[%clk 0:00:11.9]} 38... Rxe4 {[%clk 0:00:02.8]} 39.
h6+ {[%clk 0:00:11.5]} 39... Kg6 {[%clk 0:00:02]} 40. Rh3 {[%clk 0:00:11.5]}
40... Re7 {[%clk 0:00:01.6]} 41. Kf3 {[%clk 0:00:09.1]} 41... Rh7 {[%clk
0:00:02.5]} 42. Kf4 {[%clk 0:00:08.4]} 42... c5 {[%clk 0:00:01.9]} 43. Ke5
{[%clk 0:00:08.3]} 43... d4 {[%clk 0:00:01.6]} 44. cxd4 {[%clk 0:00:09.2]} 44...
Re7+ {[%clk 0:00:01.4]} 45. Kd6 {[%clk 0:00:09.6]} 1-0

[Event "Early-Titled-Tuesday-Blitz-September-05-2023"]
[Site "Chess.com"]
[Date "2023.09.05"]
[Round "8"]
[White "Nick12772"]
[Black "hakanazeri2"]
[Result "1/2-1/2"]
[WhiteElo "2325"]
[BlackElo "2569"]
[TimeControl "180+1"]
[EndTime "9:27:06 PDT"]
[Termination "Game drawn by repetition"]

1. Nf3 {[%clk 0:03:00.9]} 1... c6 {[%clk 0:02:57.3]} 2. g3 {[%clk 0:03:01.3]}
2... d5 {[%clk 0:02:58]} 3. Bg2 {[%clk 0:03:02.2]} 3... Nf6 {[%clk 0:02:58.3]}
4. O-O {[%clk 0:03:02.7]} 4... Bg4 {[%clk 0:02:58.9]} 5. d4 {[%clk 0:03:02.9]}
5... Bxf3 {[%clk 0:02:59]} 6. Bxf3 {[%clk 0:03:03.1]} 6... e6 {[%clk 0:02:59.9]}
7. c4 {[%clk 0:03:03.3]} 7... Nbd7 {[%clk 0:03:00.7]} 8. cxd5 {[%clk 0:03:03.6]}
8... exd5 {[%clk 0:03:01.2]} 9. Nc3 {[%clk 0:03:04.5]} 9... Bd6 {[%clk
0:02:59.4]} 10. Qb3 {[%clk 0:03:03.1]} 10... Qb6 {[%clk 0:02:57.8]} 11. Qxb6
{[%clk 0:03:00.9]} 11... axb6 {[%clk 0:02:58.7]} 12. Bg5 {[%clk 0:02:50.3]}
12... b5 {[%clk 0:02:55.9]} 13. Bxf6 {[%clk 0:02:50.3]} 13... Nxf6 {[%clk
0:02:47.2]} 14. a3 {[%clk 0:02:26.5]} 14... O-O {[%clk 0:02:43.5]} 15. e4 {[%clk
0:02:19.4]} 15... dxe4 {[%clk 0:02:37.7]} 16. Nxe4 {[%clk 0:02:20.3]} 16... Be7
{[%clk 0:02:35.8]} 17. Nc5 {[%clk 0:02:02.8]} 17... Bxc5 {[%clk 0:02:28.9]} 18.
dxc5 {[%clk 0:02:03.7]} 18... Nd7 {[%clk 0:02:27.8]} 19. b4 {[%clk 0:02:02.1]}
19... Ne5 {[%clk 0:02:26.8]} 20. Be2 {[%clk 0:01:56.5]} 20... g6 {[%clk
0:02:23.9]} 21. Rfd1 {[%clk 0:01:56]} 21... Rfd8 {[%clk 0:02:17.8]} 22. f4
{[%clk 0:01:54.2]} 22... Rxd1+ {[%clk 0:02:16.1]} 23. Rxd1 {[%clk 0:01:55.1]}
23... Nc4 {[%clk 0:02:14.6]} 24. Bxc4 {[%clk 0:01:44.3]} 24... bxc4 {[%clk
0:02:15.5]} 25. Rc1 {[%clk 0:01:44.6]} 25... Rxa3 {[%clk 0:02:13.6]} 26. Rxc4
{[%clk 0:01:44.8]} 26... Ra2 {[%clk 0:02:09.1]} 27. Rd4 {[%clk 0:01:42.7]} 27...
Rb2 {[%clk 0:02:07.6]} 28. h3 {[%clk 0:01:34.4]} 28... Kg7 {[%clk 0:02:06.3]}
29. g4 {[%clk 0:01:28.9]} 29... Kf6 {[%clk 0:02:01.2]} 30. Re4 {[%clk
0:01:28.8]} 30... h5 {[%clk 0:01:59.1]} 31. Kh1 {[%clk 0:01:22]} 31... h4 {[%clk
0:01:55.3]} 32. Kg1 {[%clk 0:01:21.6]} 32... g5 {[%clk 0:01:51.8]} 33. f5 {[%clk
0:01:19.5]} 33... Rd2 {[%clk 0:01:30]} 34. Kh1 {[%clk 0:01:18]} 34... Rd5 {[%clk
0:01:26.9]} 35. Kg2 {[%clk 0:01:17.1]} 35... Re5 {[%clk 0:01:24.7]} 36. Kf3
{[%clk 0:01:15.1]} 36... Rd5 {[%clk 0:01:22.5]} 37. Kg2 {[%clk 0:00:53.9]} 37...
Rd2+ {[%clk 0:01:19.7]} 38. Kh1 {[%clk 0:00:53.7]} 38... Rf2 {[%clk 0:01:16.6]}
39. Kg1 {[%clk 0:00:51]} 39... Rf4 {[%clk 0:01:14.6]} 40. Rxf4 {[%clk
0:00:49.8]} 40... gxf4 {[%clk 0:01:15.3]} 41. Kf2 {[%clk 0:00:48.6]} 41... Ke5
{[%clk 0:01:15.9]} 42. Kf3 {[%clk 0:00:40.5]} 42... f6 {[%clk 0:01:15.2]} 43.
Ke2 {[%clk 0:00:37.6]} 43... Ke4 {[%clk 0:01:14.1]} 44. Kf2 {[%clk 0:00:38.2]}
44... Kd5 {[%clk 0:00:49.1]} 45. Kf3 {[%clk 0:00:35.1]} 45... Ke5 {[%clk
0:00:49.1]} 46. Kf2 {[%clk 0:00:35.3]} 46... Ke4 {[%clk 0:00:48.3]} 47. Ke2
{[%clk 0:00:34.1]} 47... f3+ {[%clk 0:00:43.2]} 48. Kf2 {[%clk 0:00:34.6]} 48...
Kf4 {[%clk 0:00:43.8]} 49. Kf1 {[%clk 0:00:35]} 49... Ke4 {[%clk 0:00:14.9]} 50.
Kf2 {[%clk 0:00:32.7]} 50... Kf4 {[%clk 0:00:15.4]} 51. Kf1 {[%clk 0:00:33.2]}
51... Ke5 {[%clk 0:00:08.6]} 52. Kf2 {[%clk 0:00:33]} 52... Ke4 {[%clk
0:00:09.2]} 53. Kf1 {[%clk 0:00:33.4]} 53... Kd5 {[%clk 0:00:04.3]} 54. Kf2
{[%clk 0:00:27.4]} 54... Ke4 {[%clk 0:00:04.8]} 55. Kf1 {[%clk 0:00:27.6]} 55...
Ke5 {[%clk 0:00:03.9]} 56. Kf2 {[%clk 0:00:26.9]} 56... Kf4 {[%clk 0:00:04.5]}
1/2-1/2

[Event "Early-Titled-Tuesday-Blitz-September-05-2023"]
[Site "Chess.com"]
[Date "2023.09.05"]
[Round "8"]
[White "masterofpuppets2"]
[Black "mamey78"]
[Result "1-0"]
[WhiteElo "2486"]
[BlackElo "2591"]
[TimeControl "180+1"]
[EndTime "9:27:08 PDT"]
[Termination "masterofpuppets2 won on time"]

1. d4 {[%clk 0:03:00.9]} 1... d5 {[%clk 0:02:58.9]} 2. c4 {[%clk 0:03:01.1]}
2... c6 {[%clk 0:02:59]} 3. Nf3 {[%clk 0:03:01.2]} 3... Nf6 {[%clk 0:02:59.1]}
4. Nc3 {[%clk 0:03:01.4]} 4... e6 {[%clk 0:02:59.3]} 5. e3 {[%clk 0:03:00.6]}
5... Nbd7 {[%clk 0:02:59]} 6. Qc2 {[%clk 0:03:01.1]} 6... Bd6 {[%clk 0:02:58.9]}
7. b3 {[%clk 0:03:01.7]} 7... O-O {[%clk 0:02:58.3]} 8. Be2 {[%clk 0:03:02.3]}
8... b6 {[%clk 0:02:51.9]} 9. O-O {[%clk 0:03:02.1]} 9... Bb7 {[%clk 0:02:52.4]}
10. Bb2 {[%clk 0:03:02.7]} 10... Qe7 {[%clk 0:02:50.1]} 11. Rad1 {[%clk
0:03:02.1]} 11... c5 {[%clk 0:02:47.7]} 12. cxd5 {[%clk 0:03:01]} 12... exd5
{[%clk 0:02:46.8]} 13. Rfe1 {[%clk 0:02:36.8]} 13... Rfe8 {[%clk 0:02:39.5]} 14.
dxc5 {[%clk 0:02:22.6]} 14... bxc5 {[%clk 0:02:39.1]} 15. Bd3 {[%clk 0:02:20.8]}
15... Rad8 {[%clk 0:02:26.5]} 16. Bf5 {[%clk 0:02:09.5]} 16... Ne5 {[%clk
0:02:08.5]} 17. Nd2 {[%clk 0:01:38.5]} 17... Bb8 {[%clk 0:01:38.6]} 18. Nf1
{[%clk 0:01:34.5]} 18... Neg4 {[%clk 0:01:33.3]} 19. Na4 {[%clk 0:01:25.9]}
19... Bd6 {[%clk 0:01:14.5]} 20. Ba3 {[%clk 0:00:59.2]} 20... Qe5 {[%clk
0:00:43.2]} 21. Bb2 {[%clk 0:00:58.2]} 21... d4 {[%clk 0:00:42.1]} 22. f4 {[%clk
0:00:37.8]} 22... Qd5 {[%clk 0:00:36.7]} 23. h3 {[%clk 0:00:22.1]} 23... Nh6
{[%clk 0:00:32.7]} 24. Bd3 {[%clk 0:00:18.9]} 24... Qc6 {[%clk 0:00:30.4]} 25.
exd4 {[%clk 0:00:17.3]} 25... Bxf4 {[%clk 0:00:30.3]} 26. Nxc5 {[%clk
0:00:13.9]} 26... Ba8 {[%clk 0:00:29.5]} 27. Na4 {[%clk 0:00:13.2]} 27... Qd6
{[%clk 0:00:25.7]} 28. Qf2 {[%clk 0:00:11.6]} 28... Nd5 {[%clk 0:00:21.9]} 29.
Rxe8+ {[%clk 0:00:10.8]} 29... Rxe8 {[%clk 0:00:21.5]} 30. Re1 {[%clk
0:00:11.1]} 30... Rd8 {[%clk 0:00:22]} 31. Nc3 {[%clk 0:00:10.9]} 31... Nb4
{[%clk 0:00:20.3]} 32. Bb1 {[%clk 0:00:10.3]} 32... Qb8 {[%clk 0:00:18.9]} 33.
Ne4 {[%clk 0:00:10]} 33... Nd5 {[%clk 0:00:17]} 34. Nc5 {[%clk 0:00:09.6]} 34...
Qd6 {[%clk 0:00:16.6]} 35. Ne4 {[%clk 0:00:09.6]} 35... Qb6 {[%clk 0:00:15.9]}
36. Nc5 {[%clk 0:00:07.9]} 36... Bd6 {[%clk 0:00:15.6]} 37. Ne4 {[%clk 0:00:07]}
37... Bb4 {[%clk 0:00:15.2]} 38. Rd1 {[%clk 0:00:07.2]} 38... Bf8 {[%clk
0:00:15.1]} 39. Rc1 {[%clk 0:00:06.9]} 39... Qe6 {[%clk 0:00:15.2]} 40. Re1
{[%clk 0:00:07]} 40... Nf5 {[%clk 0:00:14.9]} 41. Ng5 {[%clk 0:00:06.5]} 41...
Qxe1 {[%clk 0:00:13]} 42. Qxe1 {[%clk 0:00:06.6]} 42... Nd6 {[%clk 0:00:13.1]}
43. Nf3 {[%clk 0:00:06.4]} 43... Re8 {[%clk 0:00:13]} 44. Ne5 {[%clk 0:00:06.9]}
44... f6 {[%clk 0:00:13]} 45. Qd1 {[%clk 0:00:06.7]} 45... fxe5 {[%clk
0:00:13.1]} 46. dxe5 {[%clk 0:00:07.6]} 46... Nf5 {[%clk 0:00:13.8]} 47. Bxf5
{[%clk 0:00:07.4]} 1-0

[Event "Early-Titled-Tuesday-Blitz-September-05-2023"]
[Site "Chess.com"]
[Date "2023.09.05"]
[Round "8"]
[White "viktorskliarov"]
[Black "the-gambler"]
[Result "1-0"]
[WhiteElo "2658"]
[BlackElo "2505"]
[TimeControl "180+1"]
[EndTime "9:27:08 PDT"]
[Termination "viktorskliarov won on time"]

1. e4 {[%clk 0:03:00.9]} 1... Nf6 {[%clk 0:02:58.2]} 2. Nc3 {[%clk 0:03:00.8]}
2... e5 {[%clk 0:02:56.5]} 3. Bc4 {[%clk 0:03:00.5]} 3... Nc6 {[%clk 0:02:53.3]}
4. d3 {[%clk 0:02:59]} 4... Bc5 {[%clk 0:02:49.9]} 5. a3 {[%clk 0:02:56.6]} 5...
O-O {[%clk 0:02:45.7]} 6. h3 {[%clk 0:02:56.2]} 6... Ne7 {[%clk 0:02:35.4]} 7.
Bg5 {[%clk 0:02:50.9]} 7... Ng6 {[%clk 0:02:29.9]} 8. Nf3 {[%clk 0:02:38.7]}
8... h6 {[%clk 0:02:26.2]} 9. Be3 {[%clk 0:02:37.1]} 9... Bxe3 {[%clk
0:02:19.7]} 10. fxe3 {[%clk 0:02:36.1]} 10... c6 {[%clk 0:02:20.4]} 11. O-O
{[%clk 0:02:26.5]} 11... d5 {[%clk 0:02:19.4]} 12. Bb3 {[%clk 0:02:21.7]} 12...
Be6 {[%clk 0:02:04.6]} 13. exd5 {[%clk 0:02:12.6]} 13... cxd5 {[%clk 0:02:03.5]}
14. d4 {[%clk 0:02:00]} 14... e4 {[%clk 0:01:52.6]} 15. Ne5 {[%clk 0:01:58.6]}
15... Ne7 {[%clk 0:01:32.4]} 16. Ne2 {[%clk 0:01:47.3]} 16... Nf5 {[%clk
0:01:18.3]} 17. Qd2 {[%clk 0:01:43]} 17... Nd6 {[%clk 0:00:57.5]} 18. Nf4 {[%clk
0:01:39.8]} 18... Rc8 {[%clk 0:00:56.3]} 19. Rf2 {[%clk 0:01:20.4]} 19... b5
{[%clk 0:00:54.2]} 20. Raf1 {[%clk 0:01:19.3]} 20... a5 {[%clk 0:00:48.2]} 21.
c3 {[%clk 0:01:13.9]} 21... Nc4 {[%clk 0:00:44.9]} 22. Bxc4 {[%clk 0:01:06.4]}
22... bxc4 {[%clk 0:00:44.3]} 23. Nxe6 {[%clk 0:01:05.8]} 23... fxe6 {[%clk
0:00:43.5]} 24. Ng6 {[%clk 0:01:02.4]} 24... Rf7 {[%clk 0:00:42]} 25. Qd1 {[%clk
0:01:02.3]} 25... Rcc7 {[%clk 0:00:40.4]} 26. Ne5 {[%clk 0:01:01.1]} 26... Rf8
{[%clk 0:00:39.5]} 27. Qa4 {[%clk 0:00:54]} 27... Rb7 {[%clk 0:00:35.2]} 28. Qc6
{[%clk 0:00:48.5]} 28... Qc8 {[%clk 0:00:28.6]} 29. Qa6 {[%clk 0:00:36.9]} 29...
Nh7 {[%clk 0:00:16.8]} 30. Ng6 {[%clk 0:00:20.9]} 30... Rxf2 {[%clk 0:00:14.1]}
31. Ne7+ {[%clk 0:00:20.8]} 31... Rxe7 {[%clk 0:00:09.2]} 32. Qxc8+ {[%clk
0:00:20.8]} 32... Rf8 {[%clk 0:00:09.3]} 33. Rxf8+ {[%clk 0:00:20.4]} 33... Nxf8
{[%clk 0:00:09.1]} 34. Qc5 {[%clk 0:00:18.8]} 34... Rb7 {[%clk 0:00:08.5]} 35.
Qxa5 {[%clk 0:00:18.8]} 35... Rxb2 {[%clk 0:00:08.4]} 36. a4 {[%clk 0:00:19]}
36... Re2 {[%clk 0:00:07.1]} 37. Qb4 {[%clk 0:00:16]} 37... Rxe3 {[%clk
0:00:07.1]} 38. a5 {[%clk 0:00:16.7]} 38... Re1+ {[%clk 0:00:07.6]} 39. Kf2
{[%clk 0:00:16.9]} 39... Ra1 {[%clk 0:00:07.4]} 40. Qb6 {[%clk 0:00:16.1]} 40...
Ra2+ {[%clk 0:00:05.7]} 41. Ke3 {[%clk 0:00:16.3]} 41... Ng6 {[%clk 0:00:04.6]}
42. Qxe6+ {[%clk 0:00:15.5]} 42... Kh7 {[%clk 0:00:03.8]} 43. Qb6 {[%clk
0:00:11.3]} 43... Nh4 {[%clk 0:00:03.1]} 44. Kf4 {[%clk 0:00:07.9]} 44... Nxg2+
{[%clk 0:00:02.8]} 45. Kg3 {[%clk 0:00:06.6]} 45... e3 {[%clk 0:00:02.5]} 46.
Qe6 {[%clk 0:00:06.3]} 46... e2 {[%clk 0:00:02.2]} 47. Qf5+ {[%clk 0:00:06.5]}
1-0

[Event "Early-Titled-Tuesday-Blitz-September-05-2023"]
[Site "Chess.com"]
[Date "2023.09.05"]
[Round "8"]
[White "C_K_G"]
[Black "HouseOfDurin"]
[Result "1-0"]
[WhiteElo "2079"]
[BlackElo "2267"]
[TimeControl "180+1"]
[EndTime "9:27:09 PDT"]
[Termination "C_K_G won by checkmate"]

1. e4 {[%clk 0:03:00.9]} 1... c5 {[%clk 0:02:57.5]} 2. Nf3 {[%clk 0:03:00.6]}
2... Nc6 {[%clk 0:02:57.6]} 3. d4 {[%clk 0:03:00.9]} 3... cxd4 {[%clk
0:02:58.5]} 4. Nxd4 {[%clk 0:02:59]} 4... g6 {[%clk 0:02:58.8]} 5. Bc4 {[%clk
0:02:58]} 5... Bg7 {[%clk 0:02:58.6]} 6. c3 {[%clk 0:02:55.2]} 6... d6 {[%clk
0:02:56.4]} 7. O-O {[%clk 0:02:30.4]} 7... Nf6 {[%clk 0:02:56.6]} 8. Re1 {[%clk
0:02:28]} 8... O-O {[%clk 0:02:56.2]} 9. h3 {[%clk 0:02:26.8]} 9... a6 {[%clk
0:02:53.7]} 10. Be3 {[%clk 0:02:25.4]} 10... Nxd4 {[%clk 0:02:50.7]} 11. Bxd4
{[%clk 0:02:18.9]} 11... b5 {[%clk 0:02:51.1]} 12. Bd5 {[%clk 0:02:17.8]} 12...
Nxd5 {[%clk 0:02:41.3]} 13. exd5 {[%clk 0:02:18.7]} 13... e5 {[%clk 0:02:38.5]}
14. dxe6 {[%clk 0:02:17.9]} 14... Bxe6 {[%clk 0:02:38.1]} 15. Bxg7 {[%clk
0:02:15.3]} 15... Kxg7 {[%clk 0:02:39]} 16. Qd4+ {[%clk 0:02:15.3]} 16... Qf6
{[%clk 0:02:34.5]} 17. Qxd6 {[%clk 0:02:13.5]} 17... Rad8 {[%clk 0:02:20.6]} 18.
Qg3 {[%clk 0:02:12.9]} 18... Rd5 {[%clk 0:02:03.2]} 19. a4 {[%clk 0:02:07.5]}
19... b4 {[%clk 0:01:48.6]} 20. cxb4 {[%clk 0:02:07.3]} 20... Qxb2 {[%clk
0:01:48.1]} 21. Nc3 {[%clk 0:02:07.8]} 21... Rf5 {[%clk 0:01:31.2]} 22. Rab1
{[%clk 0:01:56.7]} 22... Qa3 {[%clk 0:01:17.6]} 23. b5 {[%clk 0:01:52.7]} 23...
axb5 {[%clk 0:01:09.6]} 24. axb5 {[%clk 0:01:52.3]} 24... Rc5 {[%clk 0:01:02.1]}
25. Ne4 {[%clk 0:01:37]} 25... Qxg3 {[%clk 0:01:01.7]} 26. Nxg3 {[%clk
0:01:28.7]} 26... Rb8 {[%clk 0:01:00.8]} 27. b6 {[%clk 0:01:11.6]} 27... Rc6
{[%clk 0:01:00.8]} 28. Ne4 {[%clk 0:01:07.8]} 28... Rcxb6 {[%clk 0:01:00.6]} 29.
Rxb6 {[%clk 0:01:05.7]} 29... Rxb6 {[%clk 0:01:01.5]} 30. Nc5 {[%clk 0:01:05.8]}
30... Bd5 {[%clk 0:00:56.1]} 31. Re7 {[%clk 0:00:59.4]} 31... Rb5 {[%clk
0:00:54.7]} 32. Rc7 {[%clk 0:00:55.2]} 32... Rb1+ {[%clk 0:00:53.9]} 33. Kh2
{[%clk 0:00:54.2]} 33... Rf1 {[%clk 0:00:53.9]} 34. Kg3 {[%clk 0:00:54]} 34...
h5 {[%clk 0:00:53.4]} 35. h4 {[%clk 0:00:48.9]} 35... Rg1 {[%clk 0:00:50.6]} 36.
f3 {[%clk 0:00:36.7]} 36... Ra1 {[%clk 0:00:48.6]} 37. Nd3 {[%clk 0:00:28]}
37... Be6 {[%clk 0:00:38.1]} 38. Nf4 {[%clk 0:00:27.4]} 38... Bf5 {[%clk
0:00:37.3]} 39. Nd5 {[%clk 0:00:24.5]} 39... Ra2 {[%clk 0:00:36.5]} 40. Ne3
{[%clk 0:00:20.9]} 40... Bd3 {[%clk 0:00:32.3]} 41. Kf4 {[%clk 0:00:20.3]} 41...
Ra4+ {[%clk 0:00:28.8]} 42. Ke5 {[%clk 0:00:19.4]} 42... Rxh4 {[%clk 0:00:25.9]}
43. Nd5 {[%clk 0:00:16.8]} 43... Bc4 {[%clk 0:00:18.5]} 44. Nf6 {[%clk
0:00:14.3]} 44... Be6 {[%clk 0:00:18]} 45. Ra7 {[%clk 0:00:13.4]} 45... Rh2
{[%clk 0:00:16.8]} 46. Ra8 {[%clk 0:00:12.7]} 46... Rxg2 {[%clk 0:00:16.5]} 47.
Rg8+ {[%clk 0:00:11.4]} 47... Kh6 {[%clk 0:00:16.8]} 48. f4 {[%clk 0:00:10.1]}
48... Re2+ {[%clk 0:00:11.9]} 49. Kd6 {[%clk 0:00:10.2]} 49... g5 {[%clk
0:00:10.4]} 50. fxg5# {[%clk 0:00:08.3]} 1-0

[Event "Early-Titled-Tuesday-Blitz-September-05-2023"]
[Site "Chess.com"]
[Date "2023.09.05"]
[Round "8"]
[White "AsaHoffmann"]
[Black "KChor05TTV"]
[Result "0-1"]
[WhiteElo "2384"]
[BlackElo "2615"]
[TimeControl "180+1"]
[EndTime "9:27:11 PDT"]
[Termination "KChor05TTV won on time"]

1. d4 {[%clk 0:02:24.1]} 1... Nf6 {[%clk 0:02:58.8]} 2. Bg5 {[%clk 0:02:19.4]}
2... e6 {[%clk 0:02:44.6]} 3. Nd2 {[%clk 0:02:18.9]} 3... c5 {[%clk 0:02:35.9]}
4. e3 {[%clk 0:02:18.6]} 4... Be7 {[%clk 0:02:31.5]} 5. Bd3 {[%clk 0:02:18.3]}
5... b6 {[%clk 0:02:30]} 6. c3 {[%clk 0:02:18.1]} 6... Bb7 {[%clk 0:02:29]} 7.
Ngf3 {[%clk 0:02:18.1]} 7... h6 {[%clk 0:02:29.3]} 8. Bh4 {[%clk 0:02:17.8]}
8... g5 {[%clk 0:02:18.3]} 9. Bg3 {[%clk 0:02:17.4]} 9... Nc6 {[%clk 0:02:04.1]}
10. Qe2 {[%clk 0:02:17.2]} 10... Nh5 {[%clk 0:02:01.4]} 11. Be5 {[%clk
0:02:11.9]} 11... Nxe5 {[%clk 0:01:42.9]} 12. Nxe5 {[%clk 0:02:10]} 12... Nf6
{[%clk 0:01:23.1]} 13. f4 {[%clk 0:01:55.9]} 13... d6 {[%clk 0:01:19]} 14. Nef3
{[%clk 0:01:55.4]} 14... g4 {[%clk 0:01:17.4]} 15. Bb5+ {[%clk 0:01:40.7]} 15...
Kf8 {[%clk 0:01:16.7]} 16. Ng1 {[%clk 0:01:32.9]} 16... a6 {[%clk 0:01:04.2]}
17. Bd3 {[%clk 0:01:32.2]} 17... b5 {[%clk 0:01:04]} 18. h3 {[%clk 0:01:24.9]}
18... Rg8 {[%clk 0:00:44.8]} 19. hxg4 {[%clk 0:01:22.2]} 19... Rxg4 {[%clk
0:00:45.7]} 20. Ngf3 {[%clk 0:01:21.9]} 20... Kg7 {[%clk 0:00:43]} 21. O-O-O
{[%clk 0:01:15]} 21... cxd4 {[%clk 0:00:37.1]} 22. cxd4 {[%clk 0:01:05.2]} 22...
Rc8+ {[%clk 0:00:34.6]} 23. Kb1 {[%clk 0:01:05.2]} 23... Qb6 {[%clk 0:00:28.2]}
24. Rc1 {[%clk 0:00:53]} 24... Rxc1+ {[%clk 0:00:26.1]} 25. Rxc1 {[%clk
0:00:52.3]} 25... Nd5 {[%clk 0:00:25.4]} 26. a3 {[%clk 0:00:50.3]} 26... f5
{[%clk 0:00:23.5]} 27. Rh1 {[%clk 0:00:38.8]} 27... b4 {[%clk 0:00:19.1]} 28.
Nc4 {[%clk 0:00:37.5]} 28... Qc7 {[%clk 0:00:18.3]} 29. a4 {[%clk 0:00:35.7]}
29... b3 {[%clk 0:00:18.5]} 30. Rc1 {[%clk 0:00:29.3]} 30... Qd7 {[%clk
0:00:13.6]} 31. a5 {[%clk 0:00:23.4]} 31... Nb4 {[%clk 0:00:13]} 32. Rc3 {[%clk
0:00:20]} 32... Qa4 {[%clk 0:00:11.5]} 33. Na3 {[%clk 0:00:12]} 33... Nxd3
{[%clk 0:00:11.8]} 34. Rxd3 {[%clk 0:00:11.1]} 34... Be4 {[%clk 0:00:11.6]} 35.
Ne1 {[%clk 0:00:10.8]} 35... d5 {[%clk 0:00:10.8]} 36. g3 {[%clk 0:00:06]} 36...
Bxa3 {[%clk 0:00:09.2]} 37. bxa3 {[%clk 0:00:05.9]} 37... Qxa3 {[%clk
0:00:09.9]} 38. Qb2 {[%clk 0:00:05.8]} 38... Qxb2+ {[%clk 0:00:08.6]} 39. Kxb2
{[%clk 0:00:05.6]} 39... Bxd3 {[%clk 0:00:09.5]} 40. Nxd3 {[%clk 0:00:05.5]}
40... Rxg3 {[%clk 0:00:10]} 41. Nc5 {[%clk 0:00:04.6]} 41... Rxe3 {[%clk
0:00:08.5]} 42. Nxa6 {[%clk 0:00:04.6]} 42... h5 {[%clk 0:00:04.4]} 43. Nc5
{[%clk 0:00:04.5]} 43... Kh6 {[%clk 0:00:04.4]} 44. a6 {[%clk 0:00:04.6]} 44...
Rg3 {[%clk 0:00:04.5]} 45. a7 {[%clk 0:00:04.6]} 45... Rg8 {[%clk 0:00:04.7]}
46. Nxe6 {[%clk 0:00:03.8]} 46... Ra8 {[%clk 0:00:05.1]} 47. Nc7 {[%clk
0:00:02.9]} 47... Rxa7 {[%clk 0:00:05.6]} 48. Nxd5 {[%clk 0:00:02.9]} 48... h4
{[%clk 0:00:06.1]} 49. Ne3 {[%clk 0:00:02.9]} 49... Kg6 {[%clk 0:00:03.9]} 50.
Kxb3 {[%clk 0:00:02.6]} 50... h3 {[%clk 0:00:04]} 51. Kc4 {[%clk 0:00:02.7]}
51... h2 {[%clk 0:00:04.3]} 0-1